[Event "Early-Titled-Tuesday-Blitz-April-16-2024"]
[Site "Chess.com"]
[Date "2024.04.16"]
[Round "8"]
[White "guillembaches"]
[Black "ViktoriyaTarasova"]
[Result "1-0"]
[WhiteElo "2541"]
[BlackElo "2367"]
[TimeControl "180+1"]
[EndTime "9:32:26 PDT"]
[Termination "guillembaches won by resignation"]

1. e4 {[%clk 0:03:00.9]} 1... e5 {[%clk 0:02:55.2]} 2. Nf3 {[%clk 0:02:59.6]}
2... Nc6 {[%clk 0:02:53.5]} 3. Nc3 {[%clk 0:03:00.1]} 3... Nf6 {[%clk
0:02:53.6]} 4. d4 {[%clk 0:03:00.6]} 4... exd4 {[%clk 0:02:53.9]} 5. Nxd4 {[%clk
0:03:01.3]} 5... Bb4 {[%clk 0:02:54.2]} 6. Nxc6 {[%clk 0:03:01.9]} 6... bxc6
{[%clk 0:02:53.8]} 7. Bd3 {[%clk 0:03:02.4]} 7... d5 {[%clk 0:02:54.1]} 8. Bd2
{[%clk 0:03:02.6]} 8... O-O {[%clk 0:02:51.9]} 9. O-O {[%clk 0:03:02.5]} 9...
dxe4 {[%clk 0:02:40.4]} 10. Nxe4 {[%clk 0:02:59.6]} 10... Bxd2 {[%clk
0:02:38.3]} 11. Nxd2 {[%clk 0:02:54.7]} 11... Rb8 {[%clk 0:02:37.7]} 12. b3
{[%clk 0:02:50.7]} 12... Be6 {[%clk 0:02:37.6]} 13. Re1 {[%clk 0:02:44]} 13...
Qd7 {[%clk 0:02:36.8]} 14. Qf3 {[%clk 0:02:33.9]} 14... Bd5 {[%clk 0:02:35.6]}
15. Qf4 {[%clk 0:02:28.8]} 15... Rfe8 {[%clk 0:02:34.6]} 16. h3 {[%clk
0:02:27.2]} 16... Rxe1+ {[%clk 0:02:33.1]} 17. Rxe1 {[%clk 0:02:26.7]} 17... Re8
{[%clk 0:02:33.8]} 18. Rxe8+ {[%clk 0:02:19.4]} 18... Nxe8 {[%clk 0:02:32.9]}
19. Qe3 {[%clk 0:02:12.7]} 19... a5 {[%clk 0:02:21]} 20. a4 {[%clk 0:02:11.2]}
20... Qe6 {[%clk 0:02:14.1]} 21. Qxe6 {[%clk 0:02:04.7]} 21... Bxe6 {[%clk
0:02:14.1]} 22. f4 {[%clk 0:02:00]} 22... g6 {[%clk 0:02:13.7]} 23. Kf2 {[%clk
0:02:00]} 23... Kf8 {[%clk 0:02:13.4]} 24. Ke3 {[%clk 0:01:59.7]} 24... Ke7
{[%clk 0:02:14.1]} 25. Kd4 {[%clk 0:01:59]} 25... Kd6 {[%clk 0:02:14.7]} 26.
Ne4+ {[%clk 0:01:56.1]} 26... Ke7 {[%clk 0:02:10.9]} 27. Kc5 {[%clk 0:01:54.4]}
27... Bd5 {[%clk 0:02:08.7]} 28. g4 {[%clk 0:01:46.8]} 28... h5 {[%clk
0:02:04.4]} 29. c4 {[%clk 0:01:33.7]} 29... Be6 {[%clk 0:01:39.5]} 30. Nf2
{[%clk 0:01:13.7]} 30... hxg4 {[%clk 0:01:38.1]} 31. hxg4 {[%clk 0:01:13.9]}
31... Bd7 {[%clk 0:01:30.2]} 32. g5 {[%clk 0:01:09.2]} 32... Nd6 {[%clk
0:01:29]} 33. Be4 {[%clk 0:00:38.9]} 33... Nb7+ {[%clk 0:01:28.2]} 34. Kd4
{[%clk 0:00:39.1]} 34... Kd6 {[%clk 0:01:22.5]} 35. Nd3 {[%clk 0:00:36.6]} 35...
Be6 {[%clk 0:01:00.9]} 36. c5+ {[%clk 0:00:33.8]} 36... Kd7 {[%clk 0:00:48.4]}
37. Bxc6+ {[%clk 0:00:31.1]} 37... Kc8 {[%clk 0:00:41.5]} 38. Bxb7+ {[%clk
0:00:27.8]} 38... Kxb7 {[%clk 0:00:41.5]} 39. b4 {[%clk 0:00:25.8]} 39... Bb3
{[%clk 0:00:30.4]} 40. bxa5 {[%clk 0:00:25]} 40... Bxa4 {[%clk 0:00:29.6]} 41.
Nb4 {[%clk 0:00:24.8]} 41... Bb3 {[%clk 0:00:28.7]} 42. Ke5 {[%clk 0:00:23.4]}
42... Kc8 {[%clk 0:00:24.9]} 43. Kf6 {[%clk 0:00:21.2]} 43... Kb7 {[%clk
0:00:24.5]} 44. a6+ {[%clk 0:00:14.9]} 44... Ka7 {[%clk 0:00:23.7]} 45. Ke7
{[%clk 0:00:12.4]} 45... Bc4 {[%clk 0:00:22.7]} 46. Kd8 {[%clk 0:00:12.5]} 46...
c6 {[%clk 0:00:11.9]} 47. Kc7 {[%clk 0:00:12]} 47... Bb5 {[%clk 0:00:11.8]} 48.
Kd6 {[%clk 0:00:12.1]} 48... Ba4 {[%clk 0:00:11.6]} 49. Nxc6+ {[%clk 0:00:12.3]}
49... Kxa6 {[%clk 0:00:11.2]} 50. Ne5 {[%clk 0:00:12.5]} 50... Bb3 {[%clk
0:00:10.9]} 51. c6 {[%clk 0:00:12.4]} 51... Kb6 {[%clk 0:00:10.8]} 52. Kd7
{[%clk 0:00:12.4]} 52... Be6+ {[%clk 0:00:09.5]} 53. Kd8 {[%clk 0:00:12]} 53...
Kc5 {[%clk 0:00:06]} 54. c7 {[%clk 0:00:12.1]} 54... Kd4 {[%clk 0:00:05.5]} 55.
Nxf7 {[%clk 0:00:12.3]} 55... Ke4 {[%clk 0:00:03.8]} 56. c8=Q {[%clk 0:00:08.4]}
56... Bxc8 {[%clk 0:00:02.3]} 57. Kxc8 {[%clk 0:00:09]} 57... Kxf4 {[%clk
0:00:02.6]} 58. Kd8 {[%clk 0:00:09.5]} 58... Kf5 {[%clk 0:00:03.2]} 59. Ke8
{[%clk 0:00:09.9]} 59... Kg4 {[%clk 0:00:03.1]} 60. Kf8 {[%clk 0:00:10.1]} 60...
Kh5 {[%clk 0:00:03.9]} 61. Kg7 {[%clk 0:00:10.1]} 1-0

[Event "Early-Titled-Tuesday-Blitz-April-16-2024"]
[Site "Chess.com"]
[Date "2024.04.16"]
[Round "8"]
[White "NikitaShnadrygin"]
[Black "artin10862"]
[Result "0-1"]
[WhiteElo "2740"]
[BlackElo "2938"]
[TimeControl "180+1"]
[EndTime "9:32:27 PDT"]
[Termination "artin10862 won by resignation"]

1. e4 {[%clk 0:03:00.9]} 1... c6 {[%clk 0:02:58.7]} 2. d4 {[%clk 0:03:00.9]}
2... d5 {[%clk 0:02:59.6]} 3. f3 {[%clk 0:03:01.2]} 3... e6 {[%clk 0:02:56.3]}
4. Nc3 {[%clk 0:03:01.1]} 4... Bb4 {[%clk 0:02:55.4]} 5. Bf4 {[%clk 0:03:01.1]}
5... b6 {[%clk 0:02:51.6]} 6. a3 {[%clk 0:02:53.7]} 6... Bxc3+ {[%clk
0:02:43.5]} 7. bxc3 {[%clk 0:02:52.5]} 7... Ba6 {[%clk 0:02:44.2]} 8. Bd3 {[%clk
0:02:50.7]} 8... Ne7 {[%clk 0:02:41.3]} 9. Ne2 {[%clk 0:02:48.7]} 9... c5 {[%clk
0:02:39.6]} 10. Ng3 {[%clk 0:02:23]} 10... O-O {[%clk 0:02:27.2]} 11. O-O {[%clk
0:02:21.7]} 11... Bxd3 {[%clk 0:02:26.7]} 12. Qxd3 {[%clk 0:02:07.2]} 12... Nbc6
{[%clk 0:02:26.4]} 13. dxc5 {[%clk 0:01:54.1]} 13... bxc5 {[%clk 0:02:23.2]} 14.
c4 {[%clk 0:01:54.3]} 14... d4 {[%clk 0:02:14.9]} 15. Ne2 {[%clk 0:01:23.1]}
15... e5 {[%clk 0:02:13.1]} 16. Bd2 {[%clk 0:01:18.3]} 16... Qc8 {[%clk
0:02:05.8]} 17. Rab1 {[%clk 0:01:13.4]} 17... Qe6 {[%clk 0:01:44.5]} 18. Rb5
{[%clk 0:01:09.8]} 18... Qd6 {[%clk 0:01:44.3]} 19. Rfb1 {[%clk 0:01:06.3]}
19... f6 {[%clk 0:01:42.9]} 20. Qb3 {[%clk 0:00:53.3]} 20... Rfc8 {[%clk
0:01:20.6]} 21. Nc1 {[%clk 0:00:50.9]} 21... Nd8 {[%clk 0:01:11.9]} 22. Nd3
{[%clk 0:00:47.4]} 22... Ne6 {[%clk 0:01:12.4]} 23. Rb7 {[%clk 0:00:36.1]} 23...
Nc6 {[%clk 0:01:07.4]} 24. Qa4 {[%clk 0:00:33.9]} 24... h6 {[%clk 0:00:59.3]}
25. Qb5 {[%clk 0:00:30.1]} 25... Rab8 {[%clk 0:00:54.6]} 26. Qa6 {[%clk
0:00:26.7]} 26... Rxb7 {[%clk 0:00:53.8]} 27. Rxb7 {[%clk 0:00:26.1]} 27... Rc7
{[%clk 0:00:54.1]} 28. Rxc7 {[%clk 0:00:20.2]} 28... Qxc7 {[%clk 0:00:51.8]} 29.
Qb5 {[%clk 0:00:19.7]} 29... Ne7 {[%clk 0:00:35.8]} 30. a4 {[%clk 0:00:15.6]}
30... Qc6 {[%clk 0:00:32.1]} 31. Kf2 {[%clk 0:00:12.7]} 31... Kf7 {[%clk
0:00:32]} 32. Ke2 {[%clk 0:00:10.8]} 32... Ke8 {[%clk 0:00:31.9]} 33. Kd1 {[%clk
0:00:09.9]} 33... Kd7 {[%clk 0:00:31.8]} 34. Kc1 {[%clk 0:00:10.4]} 34... a6
{[%clk 0:00:30.1]} 35. Qb3 {[%clk 0:00:09.6]} 35... Qc7 {[%clk 0:00:25.9]} 36.
Kb2 {[%clk 0:00:09.5]} 36... Nc6 {[%clk 0:00:26]} 37. Qa3 {[%clk 0:00:07.2]}
37... Kd6 {[%clk 0:00:23.2]} 38. Ka1 {[%clk 0:00:06.8]} 38... g5 {[%clk
0:00:22.5]} 39. g4 {[%clk 0:00:06.1]} 39... h5 {[%clk 0:00:22.2]} 40. h3 {[%clk
0:00:05.9]} 40... hxg4 {[%clk 0:00:22.1]} 41. hxg4 {[%clk 0:00:06.8]} 41... Qh7
{[%clk 0:00:22.7]} 42. Qc1 {[%clk 0:00:03.5]} 42... Qh3 {[%clk 0:00:19.8]} 43.
Qd1 {[%clk 0:00:04.2]} 43... Qg2 {[%clk 0:00:19.7]} 44. Kb2 {[%clk 0:00:04.5]}
44... Ne7 {[%clk 0:00:17.6]} 45. Kc1 {[%clk 0:00:03.9]} 45... Ng6 {[%clk
0:00:17.6]} 46. Ne1 {[%clk 0:00:04.5]} 46... Qf1 {[%clk 0:00:17.5]} 47. c3
{[%clk 0:00:05.4]} 47... Qxc4 {[%clk 0:00:17.3]} 48. Qc2 {[%clk 0:00:06.1]}
48... Ngf4 {[%clk 0:00:14.3]} 49. Qb2 {[%clk 0:00:06.7]} 49... Kc7 {[%clk
0:00:12.3]} 50. a5 {[%clk 0:00:06.7]} 50... Qb5 {[%clk 0:00:10.8]} 51. Qa2
{[%clk 0:00:07.3]} 51... c4 {[%clk 0:00:10.6]} 52. Qa3 {[%clk 0:00:07]} 52...
Nc5 {[%clk 0:00:09.4]} 53. Bxf4 {[%clk 0:00:06.7]} 53... gxf4 {[%clk 0:00:09.7]}
54. cxd4 {[%clk 0:00:05.9]} 54... exd4 {[%clk 0:00:10.6]} 55. Nc2 {[%clk
0:00:06.3]} 55... c3 {[%clk 0:00:06.1]} 56. Nxd4 {[%clk 0:00:04.3]} 56... Qf1+
{[%clk 0:00:06.4]} 57. Kc2 {[%clk 0:00:04.5]} 57... Qd3+ {[%clk 0:00:07.1]} 58.
Kc1 {[%clk 0:00:05]} 58... Qxd4 {[%clk 0:00:07.4]} 0-1

[Event "Early-Titled-Tuesday-Blitz-April-16-2024"]
[Site "Chess.com"]
[Date "2024.04.16"]
[Round "8"]
[White "NovoselovRoman"]
[Black "UK_23"]
[Result "1-0"]
[WhiteElo "2596"]
[BlackElo "2480"]
[TimeControl "180+1"]
[EndTime "9:32:29 PDT"]
[Termination "NovoselovRoman won by resignation"]

1. e4 {[%clk 0:03:00.9]} 1... c6 {[%clk 0:02:25.9]} 2. d4 {[%clk 0:03:00.8]}
2... d5 {[%clk 0:02:25.3]} 3. Nd2 {[%clk 0:03:01]} 3... dxe4 {[%clk 0:02:25.5]}
4. Nxe4 {[%clk 0:03:01.9]} 4... Nf6 {[%clk 0:02:26.1]} 5. Nxf6+ {[%clk
0:02:59.6]} 5... exf6 {[%clk 0:02:27]} 6. c3 {[%clk 0:03:00.2]} 6... Bd6 {[%clk
0:02:27.6]} 7. Bd3 {[%clk 0:03:00.6]} 7... O-O {[%clk 0:02:28.2]} 8. Qc2 {[%clk
0:03:00.7]} 8... Re8+ {[%clk 0:02:28.9]} 9. Ne2 {[%clk 0:03:01.4]} 9... h5
{[%clk 0:02:29.5]} 10. O-O {[%clk 0:03:01]} 10... h4 {[%clk 0:02:30.1]} 11. h3
{[%clk 0:03:01.6]} 11... Nd7 {[%clk 0:02:30.2]} 12. Be3 {[%clk 0:03:00.7]} 12...
Nf8 {[%clk 0:02:30.3]} 13. c4 {[%clk 0:03:00.5]} 13... Be6 {[%clk 0:02:30.1]}
14. Qd2 {[%clk 0:02:56.8]} 14... Rc8 {[%clk 0:02:27.2]} 15. f4 {[%clk
0:02:56.1]} 15... f5 {[%clk 0:02:23.1]} 16. Rad1 {[%clk 0:02:55.5]} 16... g6
{[%clk 0:02:21.7]} 17. Nc3 {[%clk 0:02:52.1]} 17... Nh7 {[%clk 0:02:20.8]} 18.
Bf2 {[%clk 0:02:44.1]} 18... Be7 {[%clk 0:02:19.8]} 19. d5 {[%clk 0:02:20.8]}
19... cxd5 {[%clk 0:02:15.5]} 20. cxd5 {[%clk 0:02:21.7]} 20... Bd7 {[%clk
0:02:13.2]} 21. Bc2 {[%clk 0:01:59.2]} 21... Bc5 {[%clk 0:02:03.5]} 22. Bxc5
{[%clk 0:01:57.8]} 22... Rxc5 {[%clk 0:02:04.4]} 23. Qd4 {[%clk 0:01:57.8]}
23... b6 {[%clk 0:02:04.1]} 24. d6 {[%clk 0:01:57.7]} 24... Qf6 {[%clk
0:01:59.3]} 25. Qd2 {[%clk 0:01:45.5]} 25... Rd8 {[%clk 0:01:46.9]} 26. Rfe1
{[%clk 0:01:45]} 26... Bc6 {[%clk 0:01:36]} 27. Bb3 {[%clk 0:01:37.1]} 27... Rd7
{[%clk 0:01:19.4]} 28. Qd4 {[%clk 0:01:26.7]} 28... Qxd4+ {[%clk 0:01:09.7]} 29.
Rxd4 {[%clk 0:01:27.6]} 29... Kf8 {[%clk 0:01:10.5]} 30. Bc2 {[%clk 0:01:16.7]}
30... a5 {[%clk 0:01:05.3]} 31. a3 {[%clk 0:01:15.5]} 31... b5 {[%clk 0:00:42]}
32. Re5 {[%clk 0:01:13]} 32... Rxe5 {[%clk 0:00:37.1]} 33. fxe5 {[%clk
0:01:13.9]} 33... Ng5 {[%clk 0:00:26.8]} 34. Rxh4 {[%clk 0:01:11.1]} 34... Kg7
{[%clk 0:00:27.1]} 35. b4 {[%clk 0:01:04.6]} 35... a4 {[%clk 0:00:26.9]} 36. Bd3
{[%clk 0:00:51.3]} 36... f6 {[%clk 0:00:27.4]} 37. exf6+ {[%clk 0:00:48.8]}
37... Kxf6 {[%clk 0:00:28.3]} 38. Bxb5 {[%clk 0:00:49.1]} 38... Rxd6 {[%clk
0:00:20.7]} 39. Bxc6 {[%clk 0:00:48.2]} 39... Rxc6 {[%clk 0:00:21.6]} 40. Nxa4
{[%clk 0:00:48.4]} 40... Rc1+ {[%clk 0:00:19.4]} 41. Kh2 {[%clk 0:00:48.4]}
41... Ra1 {[%clk 0:00:20.3]} 42. Rc4 {[%clk 0:00:47.2]} 42... Rxa3 {[%clk
0:00:20]} 43. Rc6+ {[%clk 0:00:47.6]} 43... Ke5 {[%clk 0:00:20.2]} 44. Nc5
{[%clk 0:00:43.7]} 44... Ne4 {[%clk 0:00:19.1]} 45. Rxg6 {[%clk 0:00:39.7]}
45... Rc3 {[%clk 0:00:14.3]} 46. Nd7+ {[%clk 0:00:35.7]} 46... Kf4 {[%clk
0:00:13.4]} 47. b5 {[%clk 0:00:31.2]} 47... Rb3 {[%clk 0:00:13.6]} 48. b6 {[%clk
0:00:31.6]} 48... Rb1 {[%clk 0:00:13.5]} 49. h4 {[%clk 0:00:31.5]} 49... Nf2
{[%clk 0:00:13.8]} 50. g3+ {[%clk 0:00:14]} 50... Kf3 {[%clk 0:00:14.4]} 51.
Ne5+ {[%clk 0:00:12.3]} 51... Ke4 {[%clk 0:00:14.9]} 52. Nc4 {[%clk 0:00:12.5]}
52... Rb4 {[%clk 0:00:09.5]} 53. b7 {[%clk 0:00:10.6]} 53... Kf3 {[%clk
0:00:07.5]} 54. Ne5+ {[%clk 0:00:05.7]} 54... Ke4 {[%clk 0:00:06.8]} 55. Nd7
{[%clk 0:00:05.9]} 55... Ng4+ {[%clk 0:00:04]} 56. Kh3 {[%clk 0:00:03.7]} 56...
Rb2 {[%clk 0:00:03.5]} 57. Rxg4+ {[%clk 0:00:03.9]} 57... fxg4+ {[%clk
0:00:04.4]} 58. Kxg4 {[%clk 0:00:04.8]} 58... Rxb7 {[%clk 0:00:02.9]} 59. Nc5+
{[%clk 0:00:05]} 1-0

[Event "Early-Titled-Tuesday-Blitz-April-16-2024"]
[Site "Chess.com"]
[Date "2024.04.16"]
[Round "8"]
[White "aanshnerurkar"]
[Black "Djager97"]
[Result "1-0"]
[WhiteElo "2460"]
[BlackElo "2550"]
[TimeControl "180+1"]
[EndTime "9:32:29 PDT"]
[Termination "aanshnerurkar won by resignation"]

1. e4 {[%clk 0:03:00.9]} 1... e5 {[%clk 0:02:59.1]} 2. Nf3 {[%clk 0:03:00.6]}
2... Nc6 {[%clk 0:02:56.5]} 3. Bc4 {[%clk 0:02:59.9]} 3... Bc5 {[%clk
0:02:55.1]} 4. c3 {[%clk 0:02:59.7]} 4... Nf6 {[%clk 0:02:52.5]} 5. d4 {[%clk
0:02:59.7]} 5... exd4 {[%clk 0:02:53.4]} 6. e5 {[%clk 0:02:59.7]} 6... d5 {[%clk
0:02:52.6]} 7. Bb5 {[%clk 0:02:59.9]} 7... Ne4 {[%clk 0:02:52]} 8. cxd4 {[%clk
0:03:00.1]} 8... Bb6 {[%clk 0:02:52.5]} 9. Nc3 {[%clk 0:02:59.9]} 9... O-O
{[%clk 0:02:48.7]} 10. Be3 {[%clk 0:02:59.5]} 10... Ne7 {[%clk 0:02:48.8]} 11.
Bd3 {[%clk 0:02:58.3]} 11... Nxc3 {[%clk 0:02:44.9]} 12. bxc3 {[%clk 0:02:57.6]}
12... Bf5 {[%clk 0:02:45.6]} 13. O-O {[%clk 0:02:54.1]} 13... Qd7 {[%clk
0:02:44.6]} 14. Nh4 {[%clk 0:02:53.7]} 14... Bxd3 {[%clk 0:02:40.7]} 15. Qxd3
{[%clk 0:02:53.6]} 15... Rac8 {[%clk 0:02:41.3]} 16. f4 {[%clk 0:02:50.4]} 16...
Qg4 {[%clk 0:02:35.5]} 17. g3 {[%clk 0:02:40]} 17... c5 {[%clk 0:02:33.4]} 18.
f5 {[%clk 0:02:40]} 18... f6 {[%clk 0:02:28.2]} 19. e6 {[%clk 0:02:08]} 19...
cxd4 {[%clk 0:02:24.4]} 20. cxd4 {[%clk 0:02:07.5]} 20... Rc4 {[%clk 0:02:24.1]}
21. Rf4 {[%clk 0:02:06.8]} 21... Qh5 {[%clk 0:02:24.4]} 22. a4 {[%clk
0:02:01.3]} 22... Ba5 {[%clk 0:02:09.2]} 23. Ng2 {[%clk 0:01:42]} 23... Rfc8
{[%clk 0:02:05.1]} 24. h4 {[%clk 0:01:25.9]} 24... Rc2 {[%clk 0:01:46.8]} 25. g4
{[%clk 0:01:22.4]} 25... Qe8 {[%clk 0:01:46.1]} 26. g5 {[%clk 0:00:57.4]} 26...
Qh5 {[%clk 0:01:42.4]} 27. Qb5 {[%clk 0:00:48.2]} 27... fxg5 {[%clk 0:01:37.7]}
28. hxg5 {[%clk 0:00:37.8]} 28... Qh3 {[%clk 0:01:28.3]} 29. Rf2 {[%clk
0:00:29.2]} 29... Rxf2 {[%clk 0:00:40.7]} 30. Bxf2 {[%clk 0:00:28.6]} 30... Qxf5
{[%clk 0:00:27.2]} 31. Qxa5 {[%clk 0:00:26.7]} 31... Rf8 {[%clk 0:00:27.8]} 32.
Rf1 {[%clk 0:00:19.9]} 32... Qxe6 {[%clk 0:00:25.7]} 33. Qxa7 {[%clk 0:00:19.9]}
33... Qc6 {[%clk 0:00:17.8]} 34. Qc5 {[%clk 0:00:19.6]} 34... Qd7 {[%clk
0:00:16.6]} 35. a5 {[%clk 0:00:19.8]} 35... Ng6 {[%clk 0:00:09.8]} 36. Bg3
{[%clk 0:00:09.4]} 36... Rc8 {[%clk 0:00:09]} 37. Qb4 {[%clk 0:00:08.3]} 37...
Re8 {[%clk 0:00:05]} 38. Re1 {[%clk 0:00:07.9]} 38... Rxe1+ {[%clk 0:00:02.9]}
39. Qxe1 {[%clk 0:00:07]} 39... Kf7 {[%clk 0:00:03.6]} 40. Qf2+ {[%clk 0:00:07]}
40... Kg8 {[%clk 0:00:03.6]} 41. Nf4 {[%clk 0:00:07.6]} 41... Ne7 {[%clk
0:00:02.8]} 42. Qe3 {[%clk 0:00:07]} 42... Nf5 {[%clk 0:00:03]} 43. Qe6+ {[%clk
0:00:06.8]} 43... Qxe6 {[%clk 0:00:03.6]} 44. Nxe6 {[%clk 0:00:07.3]} 44... Kf7
{[%clk 0:00:04.2]} 45. Nd8+ {[%clk 0:00:07]} 45... Ke7 {[%clk 0:00:03.7]} 46.
Nxb7 {[%clk 0:00:07.2]} 46... Nxd4 {[%clk 0:00:04.3]} 47. a6 {[%clk 0:00:06.8]}
47... Nc6 {[%clk 0:00:04.5]} 48. Bf2 {[%clk 0:00:07.1]} 48... h6 {[%clk
0:00:02.6]} 49. gxh6 {[%clk 0:00:05.3]} 49... gxh6 {[%clk 0:00:03.5]} 50. Na5
{[%clk 0:00:04.3]} 50... Nb8 {[%clk 0:00:01.6]} 51. a7 {[%clk 0:00:03.8]} 1-0

[Event "Early-Titled-Tuesday-Blitz-April-16-2024"]
[Site "Chess.com"]
[Date "2024.04.16"]
[Round "8"]
[White "SHIVACalypso"]
[Black "NowInChess"]
[Result "1-0"]
[WhiteElo "2462"]
[BlackElo "2245"]
[TimeControl "180+1"]
[EndTime "9:32:29 PDT"]
[Termination "SHIVACalypso won on time"]

1. c4 {[%clk 0:02:54.6]} 1... e5 {[%clk 0:02:59.4]} 2. g3 {[%clk 0:02:53]} 2...
d6 {[%clk 0:02:58.8]} 3. Bg2 {[%clk 0:02:53.6]} 3... g6 {[%clk 0:02:58.9]} 4.
Nf3 {[%clk 0:02:53.8]} 4... Bg7 {[%clk 0:02:59.4]} 5. O-O {[%clk 0:02:54.4]}
5... f5 {[%clk 0:02:59.6]} 6. Nc3 {[%clk 0:02:55.1]} 6... Nf6 {[%clk 0:02:59.9]}
7. d3 {[%clk 0:02:55.7]} 7... O-O {[%clk 0:02:59.8]} 8. Rb1 {[%clk 0:02:56.4]}
8... a5 {[%clk 0:02:58.6]} 9. a3 {[%clk 0:02:57.1]} 9... Nh5 {[%clk 0:02:56.7]}
10. Nd2 {[%clk 0:02:55.5]} 10... Nc6 {[%clk 0:02:47.7]} 11. b4 {[%clk
0:02:55.5]} 11... axb4 {[%clk 0:02:47]} 12. axb4 {[%clk 0:02:56.4]} 12... Kh8
{[%clk 0:02:36.4]} 13. b5 {[%clk 0:02:54.9]} 13... Nb8 {[%clk 0:02:29.8]} 14.
Bb2 {[%clk 0:02:54.8]} 14... Nd7 {[%clk 0:02:29.2]} 15. Ra1 {[%clk 0:02:54.8]}
15... Rxa1 {[%clk 0:02:27.9]} 16. Qxa1 {[%clk 0:02:55.7]} 16... Nc5 {[%clk
0:02:27.9]} 17. Qa3 {[%clk 0:02:55.6]} 17... Be6 {[%clk 0:02:18.8]} 18. Nb3
{[%clk 0:02:54.2]} 18... Nxb3 {[%clk 0:02:13.5]} 19. Qxb3 {[%clk 0:02:55.1]}
19... b6 {[%clk 0:02:13.2]} 20. Ra1 {[%clk 0:02:52.5]} 20... f4 {[%clk
0:02:05.2]} 21. Ra8 {[%clk 0:02:47.2]} 21... Qf6 {[%clk 0:01:38.3]} 22. Ne4
{[%clk 0:02:33.6]} 22... Qe7 {[%clk 0:01:35.7]} 23. Rxf8+ {[%clk 0:02:31.4]}
23... Bxf8 {[%clk 0:01:35.4]} 24. Qa4 {[%clk 0:02:27.4]} 24... Qd8 {[%clk
0:01:29.4]} 25. Qa7 {[%clk 0:02:22.4]} 25... g5 {[%clk 0:01:20.1]} 26. Nc3
{[%clk 0:01:58]} 26... Bg7 {[%clk 0:01:06]} 27. Bd5 {[%clk 0:01:50.1]} 27... Bh3
{[%clk 0:00:58.4]} 28. Ne4 {[%clk 0:01:49]} 28... fxg3 {[%clk 0:00:43.7]} 29.
hxg3 {[%clk 0:01:48.7]} 29... h6 {[%clk 0:00:31.3]} 30. f3 {[%clk 0:01:23]}
30... Nf6 {[%clk 0:00:17.4]} 31. Nxf6 {[%clk 0:01:19]} 31... Bxf6 {[%clk
0:00:17.7]} 32. g4 {[%clk 0:01:14.4]} 32... h5 {[%clk 0:00:17.8]} 33. gxh5
{[%clk 0:01:12.7]} 33... g4 {[%clk 0:00:11]} 34. Qa8 {[%clk 0:01:07.8]} 34...
Qxa8 {[%clk 0:00:10.2]} 35. Bxa8 {[%clk 0:01:07.8]} 35... gxf3 {[%clk
0:00:10.8]} 36. Bxf3 {[%clk 0:01:08.7]} 36... Kg7 {[%clk 0:00:10]} 37. Kh2
{[%clk 0:01:06.1]} 37... Be6 {[%clk 0:00:09.9]} 38. Kg3 {[%clk 0:01:07]} 38...
Kh6 {[%clk 0:00:09.6]} 39. Bc1+ {[%clk 0:01:06.9]} 39... Bg5 {[%clk 0:00:08.9]}
40. Bxg5+ {[%clk 0:01:05.9]} 40... Kxg5 {[%clk 0:00:09.8]} 41. h6 {[%clk
0:00:51.6]} 41... Kxh6 {[%clk 0:00:09.2]} 42. Bg4 {[%clk 0:00:52.1]} 42... Bf7
{[%clk 0:00:06.4]} 43. Kh4 {[%clk 0:00:52]} 43... Kg7 {[%clk 0:00:05.4]} 44. Kg5
{[%clk 0:00:51.9]} 44... Be8 {[%clk 0:00:05.1]} 45. Be6 {[%clk 0:00:43.7]} 45...
Bg6 {[%clk 0:00:04.6]} 46. Bd7 {[%clk 0:00:26.2]} 46... Bf7 {[%clk 0:00:04.9]}
47. e4 {[%clk 0:00:18.3]} 47... Bg6 {[%clk 0:00:04.5]} 48. Be6 {[%clk
0:00:16.6]} 48... Be8 {[%clk 0:00:04.6]} 49. Bc8 {[%clk 0:00:17]} 49... Bf7
{[%clk 0:00:04.6]} 50. Kf5 {[%clk 0:00:14.8]} 50... Bg8 {[%clk 0:00:01.7]} 51.
Bd7 {[%clk 0:00:14.3]} 51... Bf7 {[%clk 0:00:01.3]} 52. Be6 {[%clk 0:00:12.5]}
52... Bg6+ {[%clk 0:00:01.4]} 53. Kg5 {[%clk 0:00:12.5]} 53... Be8 {[%clk
0:00:02]} 54. Bd5 {[%clk 0:00:12.8]} 54... Bd7 {[%clk 0:00:01.7]} 55. Bb7 {[%clk
0:00:08.5]} 55... Bh3 {[%clk 0:00:01.1]} 56. Bd5 {[%clk 0:00:05.2]} 56... Bf1
{[%clk 0:00:02]} 57. Kf5 {[%clk 0:00:05.3]} 57... Bxd3 {[%clk 0:00:02.3]} 58.
Ke6 {[%clk 0:00:05.6]} 1-0